fUSD/lending_fUSD_20241117
["ID","MTS","AMOUNT","RATE_DAILY","PERIOD"]
[342406333,1731805832421,-500.0,9e-05,2]
[342406334,1731805832430,-500.0,9e-05,2]
[342406335,1731805832439,-500.0,9e-05,2]
[342406336,1731805832448,-500.0,9e-05,2]
[342406337,1731805832458,-500.0,9e-05,2]
[342406338,1731805832471,-500.0,9e-05,2]
[342406339,1731805832485,-307.51,9e-05,2]
[342406340,1731805832495,-700.0,9e-05,3]
[342406341,1731805832504,-763.15,9.01e-05,2]
[342406342,1731805832513,-763.3,9.041e-05,2]
[342406343,1731805832523,-1500.0,9.1e-05,3]
[342406344,1731805832532,-1121.45,9.178e-05,2]
[342406345,1731805832541,-302.3,9.178e-05,2]
[342406346,1731805832550,-150.0,9.178e-05,2]
[342406347,1731805832560,-723.82,9.178e-05,2]
[342406348,1731805832569,-167.03,9.18e-05,2]
[342406349,1731805832579,-2300.0,9.2e-05,3]
[342406350,1731805832588,-3100.0,9.3e-05,3]
[342406351,1731805832597,-3900.0,9.4e-05,3]
[342406352,1731805832606,-700.0,9.5e-05,3]
[342406353,1731805832615,-200.0,9.6e-05,2]
[342406354,1731805832624,-700.0,9.6e-05,3]
[342406355,1731805832633,-700.0,9.7e-05,3]
[342406356,1731805832642,-473.56,9.716e-05,2]
[342406357,1731805832652,-164.82,9.737e-05,2]
[342406358,1731805832663,-1500.0,9.764e-05,2]
[342406359,1731805832672,-150.0,9.777e-05,2]
[342406360,1731805832682,-150.0,9.778e-05,2]
[342406361,1731805832691,-700.0,9.8e-05,3]
[342406362,1731805832700,-2500.0,9.8e-05,2]
[342406363,1731805832710,-1500.0,9.835e-05,2]
[342406364,1731805832719,-150.0,9.845e-05,2]
[342406365,1731805832729,-150.0,9.859e-05,2]
[342406366,1731805832738,-150.0,9.879e-05,2]
[342406367,1731805832748,-150.0,9.88e-05,2]
[342406368,1731805832758,-150.0,9.884e-05,2]
[342406369,1731805832769,-150.0,9.891e-05,2]
[342406370,1731805832780,-1500.0,9.898e-05,2]
[342406371,1731805832789,-3115.8834,9.899e-05,2]
[342406372,1731805832798,-18928.9354,9.899e-05,2]
[342406374,1731805832809,-40986.384,9.899e-05,2]
[342406376,1731805832818,-255.0,9.899e-05,2]
[342406377,1731805832828,-1500.0,9.899e-05,2]
[342406378,1731805832838,-766.2699,9.9e-05,2]
[342406379,1731805832849,-155159.6844,9.9e-05,2]
[342406380,1731805832859,-1635.0,9.9e-05,3]
[342406381,1731805832868,-5347.513,9.9e-05,2]
[342406382,1731805832878,-5935.0,9.9e-05,2]
[342406383,1731805832888,-400.522,9.9e-05,2]
[342406385,1731805832897,-150.0,9.9e-05,2]
[342406387,1731805832907,-1092.0,9.9e-05,2]
[342406388,1731805832917,-1360.256,9.906e-05,2]
[342406389,1731805832926,-175.751,9.906e-05,2]
[342406390,1731805832936,-1500.0,9.92e-05,2]
[342406391,1731805832945,-1000.0,9.937e-05,2]
[342406392,1731805832955,-150.0,9.946e-05,2]
[342406393,1731805832964,-150.0,9.947e-05,2]
[342406394,1731805832974,-1500.0,9.95e-05,2]
[342406395,1731805832982,-150.0,9.959e-05,2]
[342406396,1731805832991,-150.0,9.961e-05,2]
[342406397,1731805833001,-500.0,9.973e-05,2]
[342406398,1731805833010,-500.0,9.973e-05,2]
[342406399,1731805833019,-150.0,9.975e-05,2]
[342406400,1731805833028,-1225.88030951,9.978e-05,2]
[342406401,1731805833038,-150.0,9.984e-05,2]
[342406402,1731805833046,-341.0913959,9.987e-05,2]
[342406403,1731805833056,-205.4961405,9.987e-05,2]
[342406404,1731805833065,-325.6521401,9.993e-05,2]
[342406405,1731805833075,-310.2128843,9.993e-05,2]
[342406406,1731805833083,-196.1945061,9.993e-05,2]
[342406407,1731805833093,-186.8928716,9.993e-05,2]
[342406408,1731805833102,-150.0,9.994e-05,2]
[342406409,1731805833113,-17137.21013324,9.999e-05,2]
[342406410,1731805833123,-1015.73554936,9.999e-05,2]
[342406411,1731805833132,-3794.12875009,0.0001,2]
[342406412,1731805833141,-133441.45239764,0.0001,2]
[342406413,1731805833167,-58273.84410565,0.0001,2]
[342406414,1731805833175,-95976.03672035,0.0001,2]
[342406415,1731805833203,-24523.00138143,0.0001,2]
[342406421,1731805838744,-598.60501061,0.0001,2]
[342406422,1731805838759,-262.86277846,0.0001,2]
[342406423,1731805838773,-3017.3035435,0.0001,2]
[342406424,1731805838784,-2012.21282777,0.0001,2]
[342406425,1731805838799,-1779.0,0.0001,2]
[342406426,1731805838810,-3793620.23653478,0.0001,2]
[342406445,1731805840340,-8047.4,0.0001,2]
[342406446,1731805840582,-23152.90287193,0.0001,2]
[342406447,1731805840594,-982.90581745,0.0001,2]
[342406456,1731805843329,-460.19,9.941e-05,2]
[342406457,1731805843338,-460.19,9.944e-05,2]
[342406458,1731805843568,-1584.724,0.0001,2]
[342406459,1731805843612,-460.19,9.946e-05,2]
[342406460,1731805843621,-1224.89747765,0.0001,2]
[342406461,1731805843676,-1368.71859351,0.0001,2]
[342406462,1731805843691,-606.06,0.0001,2]
[342406463,1731805843702,-1930.6084744,0.0001,2]
[342406464,1731805843713,-363.61071934,0.0001,2]
[342406465,1731805843725,-3620.97696485,0.0001,2]
[342406466,1731805843736,-7079.08220966,0.0001,2]
[342406467,1731805843747,-29864.82531422,0.0001,2]
[342406468,1731805843772,-460.19,9.949e-05,2]
[342406469,1731805843784,-61714.01055063,0.0001,2]
[342406470,1731805843795,-8206.79,0.0001,2]
[342406471,1731805843807,-10606.32290089,0.0001,2]
[342406505,1731805846309,-460.19,9.952e-05,2]
[342406507,1731805846320,-305.5643817,9.954e-05,2]
[342406509,1731805846332,-154.6256183,9.954e-05,2]
[342406510,1731805846342,-460.19,9.957e-05,2]
[342406512,1731805846351,-460.19,9.959e-05,2]
[342406514,1731805846360,-391.7943827,9.962e-05,2]
[342406516,1731805846371,-68.3956173,9.962e-05,2]
[342406518,1731805846381,-460.19,9.965e-05,2]
[342406519,1731805846392,-460.19,9.967e-05,2]
[342406521,1731805846401,-460.19,9.97e-05,2]
[342406523,1731805846412,-460.19,9.972e-05,2]
[342406524,1731805846424,-2912.4443824,0.0001,2]
[342406526,1731805846435,-2079.24949706,0.0001,2]
[342406528,1731805846446,-1863.80403634,0.0001,2]
[342406530,1731805846457,-517.69272405,0.0001,2]
[342406533,1731805846482,-770.25158034,0.0001,2]
[342406552,1731805850728,703.57,8.219e-05,2]
[342406553,1731805884661,6882.6314,8.849e-05,2]
[342406557,1731806833148,-166.3296,8.589e-05,2]
[342406558,1731806833171,-1000.0,8.697e-05,2]
[342406559,1731806833449,-150.0,8.835e-05,2]
[342406560,1731806833475,-150.0,8.842e-05,2]
[342406561,1731806833498,-150.0,8.849e-05,2]
[342406562,1731806833522,-150.0,8.857e-05,2]
[342406563,1731806833545,-150.0,8.864e-05,2]
[342406564,1731806833568,-150.0,8.871e-05,2]
[342406565,1731806833590,-150.0,8.879e-05,2]
[342406566,1731806833611,-250.0,8.886e-05,2]
[342406567,1731806833631,-390.77,8.89e-05,2]
[342406568,1731806833652,-537.93497541,8.937e-05,2]
[342406569,1731806833675,-67.41303538,8.937e-05,2]
[342406570,1731806834559,760.37,8.219e-05,2]
[342406589,1731806946102,-250.0,8.784e-05,2]
[342406590,1731806946125,-165.38,8.866e-05,2]
[342406591,1731806946150,-250.0,8.866e-05,2]
[342406595,1731806972104,-448.44696462,8.937e-05,2]
[342406596,1731806972125,-3076.39480357,9e-05,2]
[342406600,1731806985630,734.11,8.889e-05,2]
[342406601,1731807004910,215.68,8.878e-05,2]
[342406610,1731807031602,-300.0,8.999e-05,2]
[342406611,1731807031612,-150.0,8.999e-05,2]
[342406612,1731807031621,-925.82638443,9e-05,2]
[342406613,1731807031633,-805.95079088,9e-05,2]
[342406614,1731807031642,-150.0,9e-05,2]
[342406615,1731807031651,-500.0,9e-05,2]
[342406617,1731807031661,-44.58179297,9e-05,2]
[342406619,1731807031671,-455.41820703,9e-05,2]
[342406620,1731807031681,-500.0,9e-05,2]
[342406621,1731807031689,-500.0,9e-05,2]
[342406622,1731807031698,-500.0,9e-05,2]
[342406623,1731807031707,-500.0,9e-05,2]
[342406624,1731807031720,-500.0,9e-05,2]
[342406625,1731807031735,-500.0,9e-05,2]
[342406626,1731807031744,-500.0,9e-05,2]
[342406627,1731807031753,-500.0,9e-05,2]
[342406628,1731807031762,-207.85,9e-05,2]
[342406629,1731807031771,-2736.73179297,9e-05,2]
[342406630,1731807031783,-36.55408999,9e-05,2]
[342406631,1731807031793,-500.0,9e-05,2]
[342406632,1731807031803,-537.93497541,9e-05,2]
[342406633,1731807031813,-164.51,9.014e-05,2]
[342406634,1731807031822,-432.72,9.041e-05,2]
[342406635,1731807031832,-763.61,9.041e-05,2]
[342406636,1731807031842,-763.61,9.05e-05,2]
[342406637,1731807031852,-150.0,9.178e-05,2]
[342406638,1731807031862,-649.7,9.18e-05,2]
[342406639,1731807031871,-763.61,9.18e-05,2]
[342406640,1731807031881,-3171.3088531,9.518e-05,2]
[342406641,1731807031910,-895.87243499,9.518e-05,2]
[342406642,1731807031922,-19832.81871191,9.518e-05,2]
[342406643,1731807031931,-200.0,9.6e-05,2]
[342406644,1731807031940,-200.0,9.6e-05,2]
[342406645,1731807031950,-166.46,9.642e-05,2]
[342406646,1731807031959,-150.0,9.654e-05,2]
[342406647,1731807031968,-1550.8078,9.7e-05,2]
[342406648,1731807031977,-150.0,9.729e-05,2]
[342406649,1731807031987,-150.0,9.743e-05,2]
[342406650,1731807031996,-150.0,9.749e-05,2]
[342406651,1731807032005,-150.0,9.753e-05,2]
[342406652,1731807032014,-150.0,9.774e-05,2]
[342406653,1731807032024,-1000.0,9.784e-05,2]
[342406654,1731807032033,-8058.0785746,9.79e-05,2]
[342406655,1731807032043,-588.28923009,9.8e-05,2]
[342406656,1731807032052,-57079.0778,9.8e-05,2]
[342406657,1731807032061,-33727.9607,9.8e-05,2]
[342406658,1731807032071,-1000.0,9.8e-05,2]
[342406659,1731807032081,-569.72185385,9.8e-05,2]
[342406660,1731807032094,-150.0,9.807e-05,2]
[342406661,1731807032103,-150.0,9.821e-05,2]
[342406662,1731807032113,-150.0,9.823e-05,2]
[342406663,1731807032123,-150.0,9.826e-05,2]
[342406664,1731807032132,-150.0,9.837e-05,2]
[342406665,1731807032142,-150.0,9.852e-05,2]
[342406666,1731807032151,-150.0,9.853e-05,2]
[342406667,1731807032161,-150.0,9.858e-05,2]
[342406668,1731807032172,-150.0,9.858e-05,2]
[342406669,1731807032184,-150.0,9.87e-05,2]
[342406670,1731807032193,-631.0,9.888e-05,2]
[342406671,1731807032203,-17059.7584,9.899e-05,2]
[342406672,1731807032213,-753.5468,9.899e-05,2]
[342406673,1731807032223,-1214.4905,9.899e-05,2]
[342406674,1731807032232,-2454.9844,9.899e-05,2]
[342406675,1731807032242,-420.0,9.899e-05,2]
[342406676,1731807032252,-255.0,9.899e-05,2]
[342406678,1731807032262,-1000.0,9.9e-05,2]
[342406680,1731807032271,-1242.5043,9.9e-05,2]
[342406682,1731807032280,-15977.5866,9.9e-05,2]
[342406684,1731807032289,-10886.95845842,9.9e-05,2]
[342406685,1731807032298,-1087.0,9.9e-05,2]
[342406687,1731807032307,-12020.70856289,9.9e-05,2]
[342406689,1731807032317,-500.0,9.92e-05,2]
[342406692,1731807032326,-150.0,9.938e-05,2]
[342406693,1731807032340,-150.0,9.942e-05,2]
[342406695,1731807032350,-174.757,9.943e-05,2]
[342406697,1731807032359,-1205.197,9.943e-05,2]
[342406699,1731807032368,-150.0,9.965e-05,2]
[342406701,1731807032378,-500.0,9.973e-05,2]
[342406702,1731807032387,-500.0,9.973e-05,2]
[342406703,1731807032396,-500.0,9.973e-05,2]
[342406704,1731807032405,-500.0,9.973e-05,2]
[342406705,1731807032414,-460.19,9.975e-05,2]
[342406706,1731807032424,-460.19,9.978e-05,2]
[342406707,1731807032433,-150.0,9.98e-05,2]
[342406708,1731807032442,-460.19,9.98e-05,2]
[342406709,1731807032451,-460.19,9.983e-05,2]
[342406710,1731807032460,-150.0,9.985e-05,2]
[342406711,1731807032469,-460.19,9.985e-05,2]
[342406712,1731807032478,-460.19,9.988e-05,2]
[342406713,1731807032487,-460.19,9.991e-05,2]
[342406714,1731807032496,-838.0031182,9.992e-05,2]
[342406715,1731807032505,-12813.00911417,9.999e-05,2]
[342406716,1731807032515,-12097.13862817,9.999e-05,2]
[342406717,1731807032524,-505.24460918,9.999e-05,2]
[342406718,1731807032532,-3737.21681884,0.0001,2]
[342406719,1731807032541,-189621.03216546,0.0001,2]
[342406720,1731807032550,-27964.02299534,0.0001,2]
[342406721,1731807032562,-5622.03985906,0.0001,2]
[342406722,1731807032615,-586.60211666,0.0001,2]
[342406723,1731807032626,-2574.86602488,0.0001,2]
[342406724,1731807032637,-57448.50732013,0.0001,2]
[342406725,1731807032648,-1368.41265946,0.0001,2]
[342406731,1731807037765,-2550.0,8.909e-05,2]
[342406732,1731807037777,-5292.38605864,8.909e-05,2]
[342406733,1731807037788,-3602.50878093,8.909e-05,2]
[342406734,1731807037798,-1680.61684193,8.909e-05,2]
[342406735,1731807037903,-10774.4883185,8.909e-05,2]
[342406736,1731807037913,-1784685.16457384,0.0001,2]
[342406737,1731807037925,-225321.25013557,0.0001,2]
[342406738,1731807037936,-4348386.6886057,0.0001,2]
[342406739,1731807037950,-18038.14492531,0.0001,2]
[342406744,1731807039829,-471.35792262,9.999e-05,2]
[342406966,1731807042585,-33.88668656,9.999e-05,2]
[342406967,1731807042601,-607.05599195,0.0001,2]
[342406969,1731807042612,-959.49098813,0.0001,2]
[342406971,1731807042726,-4620.20592887,0.0001,2]
[342406972,1731807042737,-6313.45109771,0.0001,2]
[342406973,1731807042935,-56.16720551,0.0001,2]
[342406974,1731807042947,-1432.30532102,0.0001,2]
[342406975,1731807043013,-2840.3843463,0.0001,2]
[342406976,1731807043024,-2510.03468951,0.0001,2]
[342406983,1731807045575,-8966.06194617,0.0001,2]
[342406984,1731807045587,-15409.26312,0.0001,2]
[342406985,1731807045603,-61578.0851419,0.0001,2]
[342406986,1731807045731,-2364.3995724,0.0001,2]
[342406987,1731807045892,-5010.87857544,0.0001,2]
[342406988,1731807045903,-3045.7483272,0.0001,2]
[342406989,1731807045914,-3479.12627782,0.0001,2]
[342406995,1731807527850,150.0,7e-05,2]
[342406996,1731807527871,150.0,7e-05,2]
[342406997,1731807527892,150.0,7e-05,2]
[342406998,1731807527912,150.0,7e-05,2]
[342406999,1731807527950,150.0,7e-05,2]
[342407000,1731807527970,150.0,7e-05,2]
[342407001,1731807527990,150.0,7e-05,2]
[342407002,1731807528010,150.0,7e-05,2]
[342407003,1731807528031,150.0,7e-05,2]
[342407004,1731807528051,150.0,7e-05,2]
[342407005,1731807528071,150.0,7e-05,2]
[342407006,1731807528091,150.0,7e-05,2]
[342407007,1731807528111,150.0,7e-05,2]
[342407008,1731807528132,150.0,7e-05,2]
[342407009,1731807528153,150.0,7e-05,2]
[342407010,1731807528174,150.0,7e-05,2]
[342407011,1731807528195,150.0,7e-05,2]
[342407012,1731807528217,11250.0,7e-05,2]
[342407013,1731807567138,150.0,7e-05,2]
[342407014,1731807567158,150.0,7e-05,2]
[342407015,1731807567180,176.70781977,7e-05,2]
[342407016,1731807567202,14523.29218023,7e-05,2]
[342407019,1731807657632,-387.31,8.755e-05,2]
[342407020,1731807661653,150.0,8.219e-05,2]
[342407021,1731807661674,169.47,8.219e-05,2]
[342407022,1731807661696,150.0,8.219e-05,2]
[342407023,1731807661719,380.68,8.219e-05,2]
[342407024,1731807684086,-2162.69,8.747e-05,2]
[342407025,1731807957798,150.21,6.823e-05,2]
[342407027,1731808068821,250.0,8.493e-05,2]
[342407030,1731808153384,-560.03,8.529e-05,2]
[342407031,1731808153408,-450.84,8.553e-05,2]
[342407032,1731808153437,-150.64,8.562e-05,2]
[342407033,1731808153462,-2000.0,8.599e-05,2]
[342407034,1731808153485,-236.161858,8.616e-05,2]
[342407035,1731808154140,-63.838142,8.616e-05,2]
[342407036,1731808154165,-3207.70811663,8.616e-05,2]
[342407037,1731808154203,-23900.0,8.617e-05,2]
[342407038,1731808154229,-7066.49,8.631e-05,2]
[342407039,1731808154253,-945.27,8.661e-05,2]
[342407040,1731808154279,-171.416335,8.683e-05,2]
[342407041,1731808154304,-157.91,8.683e-05,2]
[342407042,1731808154329,-2761.4,8.684e-05,2]
[342407043,1731808154355,-150.0,8.712e-05,2]
[342407044,1731808154379,-250.0,8.743e-05,2]
[342407045,1731808154406,-560.02,8.747e-05,2]
[342407046,1731808154438,-164.51,8.825e-05,2]
[342407047,1731808154465,-250.0,8.825e-05,2]
[342407048,1731808154489,-621.25,8.847e-05,2]
[342407049,1731808154514,-1000.0,8.867e-05,2]
[342407064,1731808187868,1000.0,8.827e-05,2]
[342407065,1731808190271,2599.7,8.832e-05,2]
[342407066,1731808203101,150.38319828,8.493e-05,2]
[342407070,1731808211789,2000.0,0.00024,60]
[342407071,1731808218254,500.0,8.814e-05,2]
[342407085,1731808231839,-150.0,8.999e-05,2]
[342407086,1731808231848,-2215.07606806,9e-05,2]
[342407087,1731808231865,-4123.26322635,9e-05,2]
[342407088,1731808231877,-1669.17885113,9e-05,2]
[342407089,1731808231889,-1992.48185446,9e-05,2]
[342407090,1731808231898,-786.34,9e-05,2]
[342407091,1731808231908,-150.6881828,9e-05,2]
[342407092,1731808231918,-500.0,9e-05,2]
[342407093,1731808231928,-500.0,9e-05,2]
[342407094,1731808231938,-499.69,9e-05,2]
[342407095,1731808231948,-200.0,9e-05,3]
[342407096,1731808231957,-165.06,9.079e-05,2]
[342407097,1731808231967,-500.0,9.1e-05,3]
[342407098,1731808231981,-165.66,9.133e-05,2]
[342407099,1731808231991,-281.14,9.178e-05,2]
[342407100,1731808232000,-727.58,9.178e-05,2]
[342407101,1731808232009,-231.64,9.178e-05,2]
[342407102,1731808232019,-150.0,9.178e-05,2]
[342407103,1731808232029,-150.0,9.178e-05,2]
[342407104,1731808232038,-150.0,9.18e-05,2]
[342407105,1731808232048,-800.0,9.2e-05,3]
[342407106,1731808232057,-1000.0,9.3e-05,3]
[342407107,1731808232067,-150.0,9.374e-05,2]
[342407108,1731808232077,-150.0,9.378e-05,2]
[342407109,1731808232086,-387.35,9.381e-05,2]
[342407110,1731808232095,-1300.0,9.4e-05,3]
[342407111,1731808232105,-200.0,9.5e-05,3]
[342407112,1731808232114,-200.0,9.6e-05,3]
[342407113,1731808232124,-1233.6,9.67e-05,2]
[342407114,1731808232133,-5713.38,9.67e-05,2]
[342407115,1731808232142,-200.0,9.7e-05,3]
[342407116,1731808232151,-578.6667,9.799e-05,2]
[342407117,1731808232161,-164.2103,9.8e-05,2]
[342407118,1731808232170,-4511.4886,9.8e-05,2]
[342407119,1731808232181,-161.258641,9.8e-05,2]
[342407120,1731808232191,-200.0,9.8e-05,3]
[342407121,1731808232200,-387.31,9.85e-05,2]
[342407122,1731808232209,-255.0,9.899e-05,2]
[342407123,1731808232223,-2005.8955,9.9e-05,2]
[342407124,1731808232232,-2259.90919267,9.9e-05,2]
[342407125,1731808232242,-812.3627,9.9e-05,2]
[342407126,1731808232251,-735.0,9.9e-05,3]
[342407127,1731808232261,-169.0,9.9e-05,2]
[342407128,1731808232270,-1003.0,9.9e-05,2]
[342407129,1731808232280,-1000.0,9.931e-05,2]
[342407130,1731808232289,-972.759,9.946e-05,2]
[342407131,1731808232298,-272.00141,9.956e-05,2]
[342407132,1731808232308,-272.00141,9.97e-05,2]
[342407133,1731808232317,-200.0,9.971e-05,2]
[342407134,1731808232326,-500.0,9.973e-05,2]
[342407135,1731808232335,-362.8156204,9.973e-05,2]
[342407136,1731808232345,-500.0,9.973e-05,2]
[342407137,1731808232355,-200.0,9.974e-05,2]
[342407138,1731808232364,-272.00141,9.984e-05,2]
[342407139,1731808232374,-272.00141,9.993e-05,2]
[342407140,1731808232383,-165.55127719,9.993e-05,2]
[342407141,1731808232392,-536.70855298,9.993e-05,2]
[342407142,1731808232401,-272.00141,9.993e-05,2]
[342407143,1731808232411,-683.0,0.0001,2]
[342407144,1731808232420,-3682.72977796,0.0001,2]
[342407145,1731808232429,-609118.58735693,0.0001,2]
[342407146,1731808232441,-2286.79370162,0.0001,2]
[342407147,1731808232496,-13240.05081496,0.0001,2]
[342407148,1731808232507,-4346.15189483,0.0001,2]
[342407149,1731808232519,-309.75,0.0001,2]
[342407150,1731808232530,-40561.6576474,0.0001,2]
[342407151,1731808232542,-1023.52705,0.0001,2]
[342407152,1731808234046,-106706.38799425,0.0001,2]
[342407153,1731808234059,-313.50023638,0.0001,2]
[342407362,1731808237912,-565.618,0.0001,2]
[342407363,1731808237925,-5940.34185658,0.0001,2]
[342407365,1731808237937,-315.48636571,0.0001,2]
[342407367,1731808238146,-2929.00667431,0.0001,2]
[342407368,1731808238158,-856.78806812,0.0001,2]
[342407369,1731808238169,-3961.97304632,0.0001,2]
[342407370,1731808238181,-1000.0,0.0001,2]
[342407372,1731808238410,-171573.81242432,0.0001,2]
[342407373,1731808238419,-4701495.94540634,0.0001,2]
[342407504,1731808239766,-855.26511377,9.9e-05,2]
[342407508,1731808239778,-346.32366787,9.9e-05,2]
[342407534,1731808240015,-592.3,9.9e-05,2]
[342407536,1731808240027,-312.52947103,9.9e-05,2]
[342407538,1731808240038,-1037.62881702,9.9e-05,2]
[342407540,1731808240048,-315.67855247,9.9e-05,2]
[342407542,1731808240059,-964.55343451,9.9e-05,2]
[342407626,1731808243028,-2985.44310836,9.9e-05,2]
[342407627,1731808243039,-3311.10179296,9.9e-05,2]
[342407629,1731808243052,-5984.89884201,9.9e-05,2]
[342407631,1731808243061,-500.0,9.973e-05,2]
[342407633,1731808243071,-720.0,0.0001,2]
[342407634,1731808243080,-2087.56733159,0.0001,2]
[342407636,1731808243093,-45150.00000001,0.0001,2]
[342407637,1731808243105,-54000.0,0.0001,2]
[342407638,1731808243116,-311.2371106,0.0001,2]
[342407639,1731808243128,-608463.38412137,0.0001,2]
[342407640,1731808243139,-932.01000002,0.0001,2]
[342407641,1731808243198,-1834.91829083,0.0001,2]
[342407642,1731808243209,-3902.9747869,0.0001,2]
[342407643,1731808243221,-3135.3,0.0001,2]
[342407644,1731808243243,-8797.2761356,0.0001,2]
[342407646,1731808243318,-72000.0,0.0001,2]
[342407664,1731808245895,-87778.0,0.0001,2]
[342407665,1731808245906,-1750.52736021,0.0001,2]
[342407666,1731808246104,-5434.00025,0.0001,2]
[342407667,1731808246115,-2875.0000005,0.0001,2]
[342407668,1731808246126,-4580.5200791,0.0001,2]
[342407669,1731808246138,-34069.56116214,0.0001,2]
[342407670,1731808272985,3669.5324,8.516e-05,2]
[342407671,1731808339141,96.82190224,8.219e-05,2]
[342407672,1731808339167,150.0,8.219e-05,2]
[342407673,1731808339190,150.0,8.219e-05,2]
[342407674,1731808339212,150.0,8.219e-05,2]
[342407675,1731808339235,150.0,8.219e-05,2]
[342407676,1731808339260,150.0,8.219e-05,2]
[342407677,1731808339286,60.69809776,8.219e-05,2]
[342407679,1731808437847,-2069.23476407,8.524e-05,2]
[342407680,1731808470894,300.0,8.384e-05,2]
[342407681,1731808482246,3725.14,8.451e-05,2]
[342407682,1731808536722,1852.42,8.413e-05,2]
[342407683,1731808571135,9328.63,8.405e-05,2]
[342407684,1731808592417,191.84,8.405e-05,2]
[342407685,1731808603149,484.97,8.405e-05,2]
[342407686,1731808603770,239.34,8.405e-05,3]
[342407687,1731808605059,23900.0,8.405e-05,2]
[342407688,1731808624346,2000.0,8.405e-05,2]
[342407689,1731808628786,200.0,8.389e-05,2]
[342407690,1731808633899,1519.38,8.389e-05,2]
[342407691,1731808636339,3145.38,8.389e-05,2]
[342407692,1731808712544,2348.7,8.405e-05,2]
[342407693,1731808734089,183.887,0.000211,60]
[342407694,1731808784515,2086.41,8.43e-05,2]
[342407695,1731808801243,2727.17,8.43e-05,2]
[342407696,1731808803620,2047.498957,8.178e-05,2]
[342407697,1731808817725,153.45,8.402e-05,2]
[342407698,1731808846636,563.32,8.445e-05,2]
[342407699,1731808866265,250.0,8.406e-05,2]
[342407700,1731808891440,1768.29,8.372e-05,2]
[342407701,1731808891652,1768.29,8.374e-05,2]
[342407702,1731808892092,1768.29,8.376e-05,2]
[342407703,1731808892310,1768.29,8.379e-05,2]
[342407704,1731808892544,1768.29,8.381e-05,2]
[342407705,1731808892753,1768.29,8.383e-05,2]
[342407706,1731808893191,1768.29,8.385e-05,2]
[342407707,1731808893332,1768.29,8.387e-05,2]
[342407708,1731808893393,1768.29,8.39e-05,2]
[342407709,1731808893696,1768.29,8.392e-05,2]
[342407710,1731808893932,1768.29,8.394e-05,2]
[342407711,1731808894135,1768.29,8.396e-05,2]
[342407712,1731808894578,1768.29,8.398e-05,2]
[342407713,1731808894810,1768.29,8.401e-05,2]
[342407714,1731808895017,1768.29,8.403e-05,2]
[342407715,1731808895216,1768.29,8.405e-05,2]
[342407716,1731808895423,1768.29,8.407e-05,2]
[342407717,1731808895664,1768.29,8.409e-05,2]
[342407718,1731808895871,1768.29,8.412e-05,2]
[342407719,1731808896228,1768.29,8.414e-05,2]
[342407720,1731808931583,1000.0,8.33e-05,2]
[342407721,1731808941271,584.5107,8.424e-05,2]
[342407722,1731808988026,1155.58,8.289e-05,2]
[342407723,1731809040128,250.0,8.294e-05,2]
[342407724,1731809055752,500.0,8.31e-05,2]
[342407725,1731809080164,2111.89,8.31e-05,2]
[342407726,1731809081883,878.64,8.219e-05,2]
[342407727,1731809092371,25285.01,8.391e-05,2]
[342407728,1731809109046,164.51,8.324e-05,2]
[342407729,1731809134106,161.08,8.325e-05,2]
[342407730,1731809161554,853.7216875,0.00024,60]
[342407731,1731809183910,250.0,8.392e-05,2]
[342407737,1731809286309,23900.0,8.362e-05,2]
[342407738,1731809290770,200.0,8.362e-05,2]
[342407739,1731809294521,6910.46,8.362e-05,2]
[342407740,1731809322620,150.0,0.00024,60]
[342407741,1731809323257,150.0,0.00024,60]
[342407742,1731809323825,165.876078,0.00024,60]